fUSD/lending_fUSD_20240211
["ID","MTS","AMOUNT","RATE_DAILY","PERIOD"]
[313751305,1707667838910,-7850966.51184385,0.00022999,2]
[313751306,1707667838920,-1000.0,0.00022999,2]
[313751307,1707667838929,-150.12647988,0.00022999,2]
[313751308,1707667838938,-150.0,0.00022999,2]
[313751309,1707667838947,-150.0,0.00022999,2]
[313751310,1707667838956,-150.0,0.00022999,2]
[313751311,1707667838965,-150.0,0.00022999,2]
[313751312,1707667838974,-150.0,0.00022999,2]
[313751313,1707667838983,-150.0,0.00022999,2]
[313751314,1707667838993,-150.0,0.00022999,2]
[313751315,1707667839002,-176.98627561,0.00022999,2]
[313751316,1707667839011,-150.0,0.00022999,2]
[313751317,1707667839020,-150.0,0.00022999,2]
[313751318,1707667839029,-150.0,0.00022999,2]
[313751319,1707667839038,-150.0,0.00022999,2]
[313751320,1707667839048,-150.0,0.00022999,2]
[313751321,1707667839057,-202.53049988,0.00022999,2]
[313751322,1707667839066,-206.51329571,0.00022999,2]
[313751323,1707667839075,-215.57997543,0.00022999,2]
[313751324,1707667839084,-228.86914772,0.00022999,2]
[313751325,1707667839094,-535.90895607,0.00022999,2]
[313751326,1707667839104,-392.39901991,0.00022999,2]
[313751327,1707667839114,-225.20298212,0.00022999,2]
[313751328,1707667839123,-4699868.77514249,0.00023,2]
[313751330,1707667840986,-1411.2,0.00023,2]
[313751331,1707667840999,-931.34,0.00023,2]
[313751332,1707667841011,-3538.53989878,0.00023,2]
[313751333,1707667841024,-660.00660538,0.00023,2]
[313751361,1707667843776,-855.34678196,0.00022898,2]
[313751362,1707667843787,-604.55861186,0.00023,2]
[313751363,1707667843812,-2657.43662187,0.00023,2]
[313751364,1707667843824,-1375.69260012,0.00023,2]
[313751365,1707667843837,-1629.98094198,0.00023,2]
[313751366,1707667843994,-126.14698233,0.00023,2]
[313751367,1707667844024,-331.50849412,0.00023,2]
[313751368,1707667844037,-1006.632,0.00023,2]
[313751369,1707667844398,-261.20740967,0.00023,2]
[313751370,1707667844426,-2532.65786698,0.00023,2]
[313751371,1707667846129,-155.0,0.00022999,2]
[313751372,1707667846139,-1963.44258758,0.00023,2]
[313751373,1707667846151,-2037.86469083,0.00023,2]
[313751374,1707667846186,-268.98826648,0.00023,2]
[313751375,1707667846197,-6224.28375882,0.00023,2]
[313751376,1707667846208,-7213.90806328,0.00023,2]
[313751377,1707667846242,-33570.84675756,0.00023,2]
[313751378,1707667846253,-38456.55600366,0.00023,2]
[313751379,1707667846404,-514.49987931,0.00022999,2]
[313751380,1707667846414,-349906.3057592,0.00023,2]
[313751381,1707667846425,-1358.0201819,0.00023,2]
[313751383,1707667879299,250.0,0.00021926,2]
[313751384,1707667895573,200.0,0.000221,8]
[313751385,1707667897683,500.0,0.000222,8]
[313751386,1707667899790,800.0,0.000223,8]
[313751387,1707667901898,1000.0,0.000224,8]
[313751388,1707667985493,298.57,0.00022248,2]
[313751389,1707667986434,2000.0,0.00022248,2]
[313751390,1707667994420,2382.39,0.00022267,2]
[313751391,1707667996780,194.01339441,0.00020698,2]
[313751392,1707667997820,563.41535426,0.00020468,2]
[313751393,1707667998394,1758.77956985,0.00020698,5]
[313751394,1707667998708,10000.0,0.00022267,2]
[313751395,1707668001980,2478.53279229,0.00022308,2]
[313751396,1707668002681,794.0736188,0.00021848,7]
[313751397,1707668003186,300.0,0.00022,2]
[313751398,1707668003395,2205.26890925,0.00022288,2]
[313751399,1707668004392,700.0,0.000221,8]
[313751400,1707668004798,1283.65969243,0.00022248,5]
[313751401,1707668005609,188.28,0.00022317,2]
[313751402,1707668006552,1500.0,0.000222,8]
[313751403,1707668006705,3126.62522492,0.00021848,2]
[313751404,1707668006992,155.42287546,0.00021848,2]
[313751405,1707668007071,1005.74030105,0.00020698,2]
[313751406,1707668008650,738.76743162,0.00021,2]
[313751407,1707668008682,2300.0,0.000223,8]
[313751408,1707668009398,12060.21193095,0.00022248,2]
[313751409,1707668010765,3100.0,0.000224,8]
[313751410,1707668012975,296.11088142,0.00020698,2]
[313751412,1707668021287,251.95940643,0.00020468,2]
[313751413,1707668022778,1283.65969243,0.00022248,5]
[313751414,1707668029391,10554.80601519,0.00022248,2]
[313751415,1707668041089,1283.65969243,0.00022248,5]
[313751416,1707668044784,719.08,0.00020038,2]
[313751417,1707668044999,719.08,0.00022302,2]
[313751418,1707668058778,1276.03321088,0.00022248,5]
[313751419,1707668066481,150.0,0.00021914,2]
[313751420,1707668123462,224.04406869,0.00022387,2]
[313751421,1707668137086,500.0,0.00021857,2]
[313751422,1707668158701,1041.53,0.00021843,2]
[313751423,1707668158994,165.95,0.00021843,2]
[313751424,1707668181753,1180.39,0.00021857,2]
[313751425,1707668192942,165.79,0.00021874,2]
[313751426,1707668197073,200.0,0.00021874,2]
[313751427,1707668223793,1033.21,0.00021897,2]
[313751428,1707668240933,200.0,0.0002181,2]
[313751429,1707668251174,811.11,0.00021798,2]
[313751430,1707668267882,200.0,0.00021824,2]
[313751431,1707668302570,1858.16,0.00021823,2]
[313751437,1707668347799,500.0,0.00021814,2]
[313751438,1707668352425,250.0,0.00021918,2]
[313751440,1707668366469,155.1,0.00021958,2]
[313751441,1707668366720,155.1,0.0002203,2]
[313751442,1707668366929,155.1,0.00022101,2]
[313751443,1707668367289,155.1,0.00022173,2]
[313751444,1707668367498,155.1,0.00022244,2]
[313751445,1707668367727,155.1,0.00022316,2]
[313751446,1707668368031,155.1,0.00022387,2]
[313751447,1707668370621,177.2,0.00022,2]
[313751448,1707668376096,250.0,0.00021709,2]
[313751449,1707668377947,173.95,0.00017384,2]
[313751451,1707668384125,500.0,0.00021918,2]
[313751452,1707668385804,500.0,0.00022,2]
[313751453,1707668396266,620.4,0.00021735,10]
[313751454,1707668396466,620.4,0.00022267,10]
[313751459,1707668462798,2000.0,0.00021724,2]
[313751460,1707668463250,1817.96,0.00021724,2]
[313751461,1707668466280,242.7,0.0002171,2]
[313751462,1707668478513,200.0,0.0002171,2]
[313751465,1707668507858,170.38284503,0.00022348,2]
[313751466,1707668516216,23900.0,0.00021711,2]
[313751468,1707668527195,150.0,0.000217,2]
[313751469,1707668533790,167.5,0.00021686,2]
[313751471,1707668543367,200.0,0.00021699,2]
[313751473,1707668573658,279.85,0.00021712,2]
[313751474,1707668574696,1985.32,0.00021712,2]
[313751479,1707668635748,-155.0,0.00022436,2]
[313751480,1707668635771,-282.67788697,0.00022437,2]
[313751481,1707668635794,-3346.47869251,0.00022437,2]
[313751482,1707668635817,-2176.62604922,0.00022437,2]
[313751484,1707668643257,200.0,0.00021737,2]
[313751485,1707668646730,514.49987931,0.00021736,2]
[313751486,1707668648065,109.4332129,0.00019801,2]
[313751487,1707668648091,573.4967871,0.00019801,2]
[313751488,1707668648306,250.43630511,0.00022065,2]
[313751489,1707668648330,432.49369489,0.00022065,2]
[313751491,1707668658472,391.43939732,0.000217,2]
[313751492,1707668658496,108.56060268,0.000217,2]
[313751495,1707668696992,-5544.85639513,0.00022433,2]
[313751496,1707668697017,-415.92623357,0.00022433,2]
[313751497,1707668697492,-1540.96555598,0.00022433,2]
[313751498,1707668697519,-626.16381703,0.00022434,2]
[313751499,1707668697810,-526.74284305,0.00022434,2]
[313751500,1707668697834,-155.0,0.00022434,2]
[313751501,1707668697857,-150.0,0.00022435,2]
[313751502,1707668697881,-300.0,0.00022435,2]
[313751503,1707668697905,-2661.91041264,0.00022436,2]
[313751505,1707668731661,200.0,0.00021749,2]
[313751509,1707668794376,840.0,0.00021834,2]
[313751512,1707668828914,250.0,0.00021805,2]
[313751514,1707668844370,500.0,0.000221,8]
[313751515,1707668846536,1000.0,0.000222,8]
[313751516,1707668848695,1600.0,0.000223,8]
[313751517,1707668850814,2100.0,0.000224,8]
[313751518,1707668851114,250.0,0.00021918,2]
[313751520,1707668852717,500.0,0.00021918,2]
[313751522,1707668878109,372.24,0.00021741,10]
[313751523,1707668878316,372.24,0.00022273,10]
[313751524,1707668878955,155.1,0.00021904,2]
[313751525,1707668879384,155.1,0.00022031,2]
[313751526,1707668880238,155.1,0.00022158,2]
[313751527,1707668880373,155.1,0.00022284,2]
[313751539,1707668935593,242.7,0.00021763,2]
[313751546,1707668960336,222.98,0.00021771,2]
[313751552,1707668983865,238.85,0.00021795,2]
[313751554,1707668987654,200.0,0.00021796,2]
[313751555,1707668998551,23900.0,0.00021796,2]
[313751556,1707669001709,2439.38,0.00022,2]
[313751557,1707669004404,200.0,0.00021796,2]
[313751562,1707669005935,177.2,0.00022,2]
[313751564,1707669016694,2000.0,0.00021796,2]
[313751565,1707669023109,500.0,0.00022,2]
[313751585,1707669032323,-313.12930109,0.0002241,2]
[313751586,1707669032335,-201.37057822,0.0002241,2]
[313751588,1707669032344,-155.1,0.00022411,2]
[313751590,1707669032353,-170.38284502,0.0002243,2]
[313751591,1707669032362,-252.4411,0.0002247,2]
[313751592,1707669032371,-150.0,0.00022471,2]
[313751593,1707669032381,-2603.80546712,0.00022498,2]
[313751594,1707669032390,-2700.0,0.000225,8]
[313751595,1707669032399,-155.1,0.00022538,2]
[313751596,1707669032409,-280.158322,0.0002254,2]
[313751597,1707669032418,-177.2,0.00022548,2]
[313751598,1707669032427,-2781.1058,0.0002257,2]
[313751599,1707669032436,-206.9592,0.0002257,2]
[313751600,1707669032445,-50154.66674703,0.0002257,2]
[313751601,1707669032469,-302.6740637,0.0002257,2]
[313751602,1707669032481,-3219.43265722,0.0002257,2]
[313751603,1707669032505,-24747.47156952,0.0002257,2]
[313751604,1707669032516,-632.83725849,0.0002257,2]
[313751605,1707669032549,-3210.2060775,0.0002257,2]
[313751606,1707669032578,-992.45391194,0.0002257,2]
[313751607,1707669032590,-3082.14472906,0.0002257,2]
[313751608,1707669032626,-851.892,0.0002257,2]
[313751610,1707669038382,-456.35152185,0.0002257,2]
[313751611,1707669038743,-1046.95585243,0.0002257,2]
[313751612,1707669038757,-3403.18710031,0.0002257,2]
[313751614,1707669038826,-6215.82722577,0.0002257,2]
[313751621,1707669038893,-9727.67228518,0.0002257,2]
[313751623,1707669038903,-500.0,0.000226,8]
[313751624,1707669038912,-155.1,0.00022665,2]
[313751625,1707669038921,-95083.9242,0.0002267,2]
[313751626,1707669038930,-748.42843425,0.00022671,2]
[313751627,1707669038938,-500.0,0.000227,8]
[313751628,1707669038947,-748.42843418,0.00022704,2]
[313751629,1707669038956,-748.42843418,0.00022736,2]
[313751630,1707669038966,-29000.68742331,0.00022767,2]
[313751631,1707669038975,-229.57212479,0.00022768,2]
[313751632,1707669038985,-155.73119273,0.00022768,2]
[313751633,1707669038994,-3338.81705479,0.00022768,2]
[313751634,1707669039005,-261.82623265,0.00022768,2]
[313751635,1707669039014,-521.4661328,0.00022768,2]
[313751636,1707669039024,-1837.31657516,0.00022768,2]
[313751637,1707669039033,-1955.00866433,0.00022768,2]
[313751638,1707669039042,-517.59980563,0.00022768,2]
[313751639,1707669039051,-672.38951663,0.00022768,2]
[313751641,1707669039060,-180.93154071,0.00022768,2]
[313751643,1707669039070,-9339.73209256,0.00022768,2]
[313751645,1707669039079,-227.42786088,0.00022768,2]
[313751647,1707669039088,-386.40329842,0.00022768,2]
[313751649,1707669039097,-7572.27110737,0.00022768,2]
[313751651,1707669039108,-3652.96360614,0.00022769,2]
[313751653,1707669039118,-748.42843418,0.00022769,2]
[313751655,1707669039127,-142660.17652464,0.0002277,2]
[313751657,1707669039135,-167.5,0.00022771,2]
[313751659,1707669039145,-155.1,0.00022792,2]
[313751661,1707669039154,-1714.4,0.00022799,2]
[313751663,1707669039164,-210.0,0.000228,2]
[313751664,1707669039173,-500.0,0.000228,8]
[313751665,1707669039183,-748.42843418,0.00022802,2]
[313751666,1707669039193,-372.24,0.00022806,10]
[313751667,1707669039202,-500.0,0.00022874,2]
[313751668,1707669039212,-500.0,0.00022882,2]
[313751669,1707669039221,-238.85,0.00022885,2]
[313751670,1707669039232,-500.0,0.00022891,2]
[313751671,1707669039241,-646.35681455,0.00022898,2]
[313751672,1707669039253,-597.9016424,0.00022898,2]
[313751673,1707669039262,-58056.81902718,0.00022898,2]
[313751674,1707669039272,-245000.0,0.000229,2]
[313751675,1707669039281,-39198.5978,0.000229,2]
[313751676,1707669039291,-500.0,0.000229,2]
[313751677,1707669039299,-5000.0,0.000229,2]
[313751678,1707669039309,-1111.6785,0.000229,2]
[313751679,1707669039318,-242.75,0.000229,2]
[313751680,1707669039328,-419.45052016,0.000229,6]
[313751681,1707669039337,-175.35125599,0.000229,2]
[313751682,1707669039346,-500.0,0.000229,8]
[313751683,1707669039356,-164.14,0.00022916,2]
[313751684,1707669039365,-155.1,0.00022918,2]
[313751685,1707669039374,-485.62958217,0.00022987,2]
[313751686,1707669039383,-289.8795039,0.00022996,2]
[313751687,1707669039392,-214.26983669,0.00022996,2]
[313751688,1707669039402,-163.71547153,0.00022997,2]
[313751689,1707669039411,-155.0,0.00022998,2]
[313751690,1707669039421,-475.46988706,0.00022998,2]
[313751691,1707669039430,-80413.652918,0.00022998,2]
[313751692,1707669039440,-276.52257299,0.00022998,2]
[313751693,1707669039449,-199.03575703,0.00022998,2]
[313751694,1707669039459,-7819.97787936,0.00022998,2]
[313751695,1707669039468,-158.7798663,0.00022998,2]
[313751696,1707669039478,-162.62903325,0.00022998,2]
[313751697,1707669039487,-174.99521815,0.00022998,2]
[313751698,1707669039497,-262.58615506,0.00022998,2]
[313751699,1707669039507,-543.93769713,0.00022998,2]
[313751700,1707669039516,-304.8999602,0.00022998,2]
[313751701,1707669039526,-203.31012739,0.00022998,2]
[313751702,1707669039536,-260.58052071,0.00022998,2]
[313751703,1707669039545,-157.52758694,0.00022998,2]
[313751704,1707669039555,-2070.82387328,0.00022998,2]
[313751705,1707669039564,-3168.59379071,0.00022998,2]
[313751706,1707669039574,-28481.62634379,0.00022998,2]
[313751707,1707669039583,-183.17618176,0.00022998,2]
[313751708,1707669039599,-155.0,0.00022998,2]
[313751709,1707669039615,-2305.02815688,0.00022998,2]
[313751710,1707669039625,-286.19980726,0.00022998,2]
[313751711,1707669039635,-155.88845907,0.00022998,2]
[313751712,1707669039645,-943.96216802,0.00022998,2]
[313751713,1707669039654,-375.18085056,0.00022998,2]
[313751714,1707669039664,-401.81085213,0.00022998,2]
[313751715,1707669039674,-1000.0,0.00022999,2]
[313751716,1707669039684,-225.20298212,0.00022999,2]
[313751717,1707669039694,-206.51329571,0.00022999,2]
[313751718,1707669039703,-215.57997543,0.00022999,2]
[313751719,1707669039712,-228.86914772,0.00022999,2]
[313751720,1707669039722,-535.90895607,0.00022999,2]
[313751721,1707669039731,-392.39901991,0.00022999,2]
[313751722,1707669039741,-500.0,0.00022999,2]
[313751723,1707669039751,-500.0,0.00022999,2]
[313751724,1707669039761,-500.0,0.00022999,2]
[313751725,1707669039771,-500.0,0.00022999,2]
[313751726,1707669039781,-500.0,0.00022999,2]
[313751727,1707669039793,-466.87469913,0.00022999,2]
[313751728,1707669039802,-500.0,0.00022999,2]
[313751729,1707669039812,-500.0,0.00022999,2]
[313751730,1707669039824,-229.67526688,0.00022999,2]
[313751731,1707669039833,-150.0,0.00022999,2]
[313751732,1707669039843,-150.0,0.00022999,2]
[313751733,1707669039853,-150.0,0.00022999,2]
[313751734,1707669039862,-150.0,0.00022999,2]
[313751735,1707669039872,-150.0,0.00022999,2]
[313751736,1707669039882,-150.0,0.00022999,2]
[313751737,1707669039892,-176.98627561,0.00022999,2]
[313751738,1707669039902,-150.0,0.00022999,2]
[313751739,1707669039913,-150.0,0.00022999,2]
[313751740,1707669039922,-150.0,0.00022999,2]
[313751741,1707669039932,-150.0,0.00022999,2]
[313751742,1707669039942,-150.0,0.00022999,2]
[313751743,1707669039951,-150.0,0.00022999,2]
[313751744,1707669039961,-202.53049988,0.00022999,2]
[313751745,1707669039970,-450037.2997534,0.00023,2]
[313751746,1707669039980,-3445689.96687567,0.00023,2]
[313751748,1707669041147,-748.42843418,0.00022835,2]
[313751749,1707669041156,-1743.18204098,0.00023,2]
[313751750,1707669041626,-3837.85404039,0.00023,2]
[313751751,1707669041816,-302.22761,0.00023,2]
[313751752,1707669041828,-1768.45637484,0.00023,2]
[313751769,1707669043363,-318.5663555,0.00023,2]
[313751770,1707669043474,-387.7445987,0.00023,2]
[313751772,1707669046318,-1303.12237507,0.0002257,2]
[313751773,1707669046373,-648.91636192,0.0002257,2]
[313751774,1707669046385,-907.23067622,0.0002257,2]
[313751775,1707669046397,-242140.73058679,0.0002257,2]
[313751776,1707669046407,-335.86745006,0.00022999,2]
[313751777,1707669046416,-49568.28166915,0.00023,2]
[313751778,1707669046428,-914.22804005,0.00023,2]
[313751780,1707669047398,-359.00939672,0.00023,2]
[313751781,1707669047417,-2245.71302855,0.00023,2]
[313751782,1707669069617,151.83299161,0.00022,2]
[313751784,1707669102315,614.63,0.00020731,2]
[313751785,1707669136643,500.0,0.00022374,2]
[313751786,1707669136688,235.89308219,0.00022,2]
[313751787,1707669269934,328.0,0.00022128,2]
[313751788,1707669296922,967.35,0.00022017,2]
[313751789,1707669312839,200.0,0.00022017,2]
[313751790,1707669328827,250.0,0.00022017,2]
[313751797,1707669344432,250.0,0.00022083,2]
[313751798,1707669349592,186.12,0.00022083,10]
[313751799,1707669363266,155.1,0.00022173,2]
[313751800,1707669382884,500.0,0.00021995,2]
[313751801,1707669391459,1500.0,0.00022043,7]
[313751802,1707669400355,165.79,0.00021971,2]
[313751804,1707669457453,23900.0,0.00021874,2]
[313751806,1707669487142,200.0,0.00021856,2]
[313751809,1707669557070,583.89,0.0001994,2]
[313751810,1707669557310,583.89,0.00022204,2]
[313751811,1707669566963,1835.54,0.00021881,2]
[313751813,1707669605646,326.41948262,0.00023,30]
[313751814,1707669640878,345.20886258,0.00022,2]
[313751815,1707669690525,150.0,0.00021835,2]
[313751816,1707669732538,737.6,0.00021814,2]
[313751817,1707669733618,243.81,0.00021814,2]
[313751818,1707669756133,200.0,0.00021819,2]
[313751819,1707669807587,186.13,0.00021848,10]
[313751821,1707669816255,250.0,0.00021843,2]
[313751822,1707669837384,250.0,0.00021918,2]
[313751823,1707669887231,2000.0,0.00021768,2]
[313751824,1707669958316,500.0,0.00021918,2]
[313751825,1707669976596,16143.27,0.00021854,2]
[313751826,1707670003782,-250.4553575,0.00022441,2]
[313751827,1707670003820,-252.4411,0.00022442,2]
[313751828,1707670003855,-1000.0,0.000225,2]
[313751829,1707670003888,-290.71523709,0.0002254,2]
[313751830,1707670003919,-7010.27037205,0.00022569,2]
[313751831,1707670003955,-1280.11501126,0.0002257,5]
[313751832,1707670003987,-378.36455149,0.00022604,2]
[313751833,1707670004017,-19238.85921727,0.00022668,2]
[313751834,1707670004047,-11066.9323,0.00022669,2]
[313751835,1707670004078,-361.2291,0.0002267,2]
[313751836,1707670004108,-491.35943145,0.00022702,2]
[313751837,1707670004140,-674823.51750974,0.00022703,2]
[313751838,1707670004193,-1494.1330697,0.00022733,2]
[313751839,1707670004234,-378.36455148,0.00022752,2]
[313751840,1707670004274,-10570.09076328,0.00022767,2]
[313751841,1707670004311,-155.86909284,0.00022767,2]
[313751842,1707670004344,-216.40745684,0.00022768,2]
[313751843,1707670004382,-2792.19097905,0.00022768,2]
[313751844,1707670004414,-1634.54335949,0.00022768,2]
[313751845,1707670004448,-5297.72452589,0.00022768,2]
[313751846,1707670004479,-50000.0,0.000228,2]
[313751847,1707670004508,-533.2156111,0.000228,2]
[313751848,1707670004539,-4267.83838503,0.00022866,2]
[313751849,1707670004569,-722.19,0.00022866,2]
[313751850,1707670004607,-378.36455148,0.00022899,2]
[313751851,1707670004646,-1949.5469,0.000229,2]
[313751852,1707670004682,-491.88,0.000229,2]
[313751853,1707670004750,-11875.90091618,0.000229,2]
[313751854,1707670004782,-5000.0,0.000229,2]
[313751855,1707670004812,-1536.51370986,0.000229,2]
[313751856,1707670004841,-1121.98895839,0.000229,2]
[313751857,1707670004871,-432.8186179,0.000229,6]
[313751858,1707670004908,-243.81,0.00022905,2]
[313751859,1707670004942,-155.49774992,0.00022998,2]
[313751860,1707670004974,-1565.41493992,0.00022998,2]
[313751861,1707670005007,-266.46430983,0.00022999,2]
[313751862,1707670005040,-1000.0,0.00022999,2]
[313751863,1707670005073,-1000.0,0.00022999,2]
[313751864,1707670005102,-1000.0,0.00022999,2]
[313751865,1707670005132,-1000.0,0.00022999,2]
[313751866,1707670005166,-413.153319,0.00022999,2]
[313751867,1707670005196,-433.33556419,0.00022999,2]
[313751868,1707670005228,-533.84615541,0.00022999,2]
[313751869,1707670005258,-500.0,0.00022999,2]
[313751870,1707670005288,-392.39901991,0.00022999,2]
[313751871,1707670005321,-500.0,0.00022999,2]
[313751872,1707670005351,-471.07311472,0.00022999,2]
[313751873,1707670005380,-255.39692864,0.00022999,2]
[313751874,1707670005411,-500.0,0.00022999,2]
[313751875,1707670005441,-500.0,0.00022999,2]
[313751876,1707670005475,-500.0,0.00022999,2]
[313751877,1707670005499,-215.57997543,0.00022999,2]
[313751878,1707670005519,-454.97015045,0.00022999,2]
[313751879,1707670005541,-155.36118022,0.00022999,2]
[313751880,1707670005564,-500.0,0.00022999,2]
[313751881,1707670005585,-500.0,0.00022999,2]
[313751882,1707670005606,-466.87469913,0.00022999,2]
[313751883,1707670005627,-500.0,0.00022999,2]
[313751884,1707670005648,-500.0,0.00022999,2]
[313751885,1707670005670,-500.0,0.00022999,2]
[313751886,1707670006173,-500.0,0.00022999,2]
[313751887,1707670006203,-500.0,0.00022999,2]
[313751888,1707670006225,-250.28576935,0.00023,3]
[313751889,1707670006246,-528200.67736312,0.00023,2]
[313751890,1707670006271,-196232.0191244,0.00023,2]
[313751891,1707670025441,525.5,0.00022172,2]
[313751892,1707670068092,200.0,0.00022,8]
[313751893,1707670070257,500.0,0.000221,8]
[313751894,1707670072288,800.0,0.000222,8]
[313751895,1707670074394,1000.0,0.000223,8]
[313751896,1707670076491,1300.0,0.000224,8]
[313751902,1707670184960,409.92,0.00021895,2]
[313751907,1707670231801,-1408.28428995,0.00022435,2]
[313751908,1707670231810,-250.4553575,0.00022436,2]
[313751909,1707670231821,-370.398,0.00022441,2]
[313751910,1707670231831,-200.0,0.000225,8]
[313751911,1707670231840,-3562.9116797,0.000226,2]
[313751912,1707670231849,-200.0,0.000226,8]
[313751914,1707670231859,-701.2500694,0.00022602,2]
[313751916,1707670231868,-150.0,0.00022602,2]
[313751918,1707670231877,-150.0,0.00022602,2]
[313751920,1707670231886,-252.4411,0.00022603,2]
[313751922,1707670231895,-4169.6923,0.00022603,2]
[313751924,1707670231904,-1000.0,0.00022603,2]
[313751926,1707670231913,-37156.1424,0.00022603,2]
[313751929,1707670231922,-499.99,0.000227,2]
[313751932,1707670231931,-200.0,0.000227,8]
[313751935,1707670231940,-11321.00859619,0.00022768,2]
[313751937,1707670231949,-6135.8057039,0.0002277,2]
[313751939,1707670231985,-140105.1942961,0.0002277,2]
[313751940,1707670231994,-200.0,0.000228,8]
[313751941,1707670232003,-733.77,0.00022857,2]
[313751942,1707670232012,-446.17232697,0.00022898,2]
[313751943,1707670232021,-446.1723269,0.00022898,2]
[313751944,1707670232030,-446.1723269,0.00022899,2]
[313751945,1707670232038,-446.1723269,0.00022899,2]
[313751946,1707670232047,-446.1723269,0.00022899,2]
[313751947,1707670232057,-446.1723269,0.00022899,2]
[313751948,1707670232065,-446.1723269,0.000229,2]
[313751949,1707670232074,-5000.0,0.000229,2]
[313751950,1707670232083,-612.16941064,0.000229,2]
[313751951,1707670232092,-446.1723269,0.000229,2]
[313751952,1707670232101,-500.0,0.000229,2]
[313751954,1707670232110,-9847.2427,0.000229,2]
[313751956,1707670232119,-178.0909694,0.000229,2]
[313751958,1707670232128,-5115.05957011,0.000229,2]
[313751960,1707670232137,-893.0,0.000229,8]
[313751962,1707670232146,-800.0,0.00022959,2]
[313751963,1707670232155,-170.56684723,0.00022998,2]
[313751965,1707670232164,-278.73949976,0.00022998,2]
[313751967,1707670232173,-418.01197581,0.00022998,2]
[313751969,1707670232182,-458.61442053,0.00022998,2]
[313751971,1707670232191,-367.73648479,0.00022998,2]
[313751973,1707670232201,-1844.68218607,0.00022998,4]
[313751976,1707670232210,-242.25045307,0.00022998,2]
[313751977,1707670232219,-155.20630276,0.00022998,2]
[313751979,1707670232228,-156.77297195,0.00022998,2]
[313751981,1707670232238,-698.06254983,0.00022998,2]
[313751984,1707670232247,-394.24298195,0.00022998,2]
[313751986,1707670232256,-3336.34917432,0.00022998,2]
[313751987,1707670232265,-155.0,0.00022998,2]
[313751989,1707670232275,-431.5020231,0.00022998,2]
[313751991,1707670232284,-266.05521495,0.00022998,2]
[313751993,1707670232293,-511.6448832,0.00022998,2]
[313751996,1707670232303,-230.34116261,0.00022998,2]
[313751998,1707670232312,-305.46768678,0.00022998,2]
[313751999,1707670232321,-230.02103007,0.00022998,2]
[313752002,1707670232331,-1182.81798027,0.00022998,2]
[313752003,1707670232340,-1054.05254767,0.00022998,2]
[313752006,1707670232350,-5355.45944021,0.00022998,2]
[313752007,1707670232359,-275.04808782,0.00022998,2]
[313752009,1707670232369,-158.36561926,0.00022998,2]
[313752011,1707670232378,-249.44375628,0.00022998,2]
[313752013,1707670232387,-155.6658,0.00022998,2]
[313752015,1707670232396,-942.94638572,0.00022998,2]
[313752017,1707670232406,-349.68076355,0.00022998,2]
[313752019,1707670232415,-447.95169275,0.00022998,2]
[313752020,1707670232426,-359.04499878,0.00022998,2]
[313752021,1707670232436,-34693.24178966,0.00022998,2]
[313752022,1707670232446,-298.27166747,0.00022998,2]
[313752023,1707670232456,-210.7249278,0.00022998,2]
[313752024,1707670232465,-2423.97554816,0.00022998,2]
[313752025,1707670232475,-528.78479227,0.00022998,2]
[313752026,1707670232484,-224.38899878,0.00022998,2]